[Event "53rd Biel Blitz 2020"]
[Site "Biel"]
[Date "2020.07.25"]
[Round "3.1"]
[White "Studer, Noel"]
[Black "Naiditsch, Arkadji"]
[Result "1-0"]
[ECO "E11"]
[WhiteElo "2422"]
[BlackElo "2581"]
[Annotator "ChessBase"]
[PlyCount "61"]
[EventDate "2020.07.21"]
[EventType "tourn"]
[EventCountry "SUI"]
[SourceTitle "playchess.com"]
[Source "ChessBase"]
[SourceQuality "1"]
[TimeControl "180+2"]

1. d4 {[%emt 0:00:00]} Nf6 {[%emt 0:00:00]} 2. c4 {[%emt 0:00:00]} e6 {[%emt 0:00:00]} 3. Nf3 {[%emt 0:00:00]} Bb4+ {[%emt 0:00:02]} 4. Nbd2 {[%emt 0:00:01]} c5 {[%emt 0:00:02]} 5. a3 {[%emt 0:00:07]} Bxd2+ {[%emt 0:00:02]} 6. Bxd2 {[%emt 0:00:15]} cxd4 {[%emt 0:00:02]} 7. Nxd4 {[%emt 0:00:01]} d5 {[%emt 0:00:01]} 8. cxd5 {[%emt 0:00:09]} Qxd5 {[%emt 0:00:02]} 9. e3 {[%emt 0:00:01]} O-O {[%emt 0:00:02]} 10. Nb5 {[%emt 0:00:21]} Na6 {[%emt 0:00:06]} 11. Bc3 {[%emt 0:00:04]} Qg5 {[%emt 0:00:03]} 12. h4 {[%emt 0:00:11]} Qg6 {[%emt 0:00:13]} 13. Qd3 {[%emt 0:00:20]} Ne4 {[%emt 0:00:15]} 14. h5 {[%emt 0:00:34]} Qf5 {[%emt 0:00:02]} 15. f3 {[%emt 0:00:00]} Nxc3 {[%emt 0:00:26]} 16. Qxf5 {[%emt 0:00:01]} exf5 {[%emt 0:00:01]} 17. Nxc3 {[%emt 0:00:01]} Be6 {[%emt 0:00:24]} 18. Rh4 {[%emt 0:00:13]} Nc5 {[%emt 0:00:02]} 19. b4 {[%emt 0:00:07]} Nb3 {[%emt 0:00:03]} 20. Rd1 {[%emt 0:00:02]} Rfc8 {[%emt 0:00:13]} 21. Nd5 {[%emt 0:00:10]} Rc2 {[%emt 0:00:11]} 22. Bc4 {[%emt 0:00:03]} Nc1 {[%emt 0:00:20]} 23. h6 {[%emt 0:00:19]} g5 {[%emt 0:00:23]} 24. Rhd4 {[%emt 0:00:03]} Kf8 {[%emt 0:00:06]} 25. R1d2 {[%emt 0:00:05]} Rxd2 {[%emt 0:00:14]} 26. Kxd2 {[%emt 0:00:01]} Rc8 {[%emt 0:00:02]} 27. b5 {[%emt 0:00:17]} a6 {[%emt 0:00:02]} 28. a4 {[%emt 0:00:01]} axb5 {[%emt 0:00:02]} 29. axb5 {[%emt 0:00:00]} f4 {[%emt 0:00:15]} 30. e4 {[%emt 0:00:01]} Bd7 {[%emt 0:00:12]} 31. Nb6 {[%emt 0:00:05]} 1-0

[Event "53rd Biel Blitz 2020"]
[Site "Biel"]
[Date "2020.07.25"]
[Round "6.4"]
[White "Anton Guijarro, David"]
[Black "Naiditsch, Arkadji"]
[Result "1/2-1/2"]
[ECO "D03"]
[WhiteElo "2590"]
[BlackElo "2581"]
[Annotator "RC"]
[PlyCount "112"]
[EventDate "2020.07.21"]
[EventType "tourn"]
[EventCountry "SUI"]
[SourceTitle "playchess.com"]
[Source "ChessBase"]
[SourceQuality "1"]
[TimeControl "180+2"]

1. d4 {[%emt 0:00:00]} Nf6 {[%emt 0:00:00]} 2. Nf3 {[%emt 0:00:01]} g6 {[%emt 0:00:00]} 3. Bg5 {[%emt 0:00:08]} Bg7 {[%emt 0:00:01]} 4. Nbd2 {[%emt 0:00:04]} d5 {[%emt 0:00:03]} 5. e3 {[%emt 0:00:02]} O-O {[%emt 0:00:02]} 6. Bd3 {[%emt 0:00:03]} c5 {[%emt 0:00:01]} 7. c3 {[%emt 0:00:02]} Nc6 {[%emt 0:00:02]} 8. O-O {[%emt 0:00:14]} Qb6 {[%emt 0:00:02]} 9. Rb1 {[%emt 0:00:08]} Bg4 {[%emt 0:00:11]} 10. h3 {[%emt 0:00:06]} Bxf3 {[%emt 0:00:02]} 11. Nxf3 {[%emt 0:00:03]} Rfe8 {[%emt 0:00:07]} 12. b4 {[%emt 0:00:10]} cxd4 {[%emt 0:00:18]} 13. cxd4 {[%emt 0:00:03]} Ne4 {[%emt 0:00:07]} 14. Bxe4 {[%emt 0:00:19]} dxe4 {[%emt 0:00:02]} 15. Nd2 {[%emt 0:00:01]} Nxb4 {[%emt 0:00:20]} 16. Qa4 {[%emt 0:00:30]} a5 {[%emt 0:00:14]} 17. a3 {[%emt 0:00:02]} Qc6 {[%emt 0:00:01]} 18. Qxc6 {[%emt 0:00:02]} Nxc6 {[%emt 0:00:01]} 19. Nxe4 {[%emt 0:00:11]} h6 {[%emt 0:00:18]} 20. Bf4 {[%emt 0:00:16]} e5 {[%emt 0:00:08]} 21. dxe5 {[%emt 0:00:05]} g5 {[%emt 0:00:02]} 22. Nd6 {[%emt 0:00:10]} gxf4 {[%emt 0:00:17]} 23. Nxe8 {[%emt 0:00:02]} Rxe8 {[%emt 0:00:17]} 24. exf4 {[%emt 0:00:02]} Nd4 {[%emt 0:00:02]} 25. Rxb7 {[%emt 0:00:15]} Ne2+ {[%emt 0:00:02]} 26. Kh2 {[%emt 0:00:01]} Nxf4 {[%emt 0:00:01]} 27. g3 {[%emt 0:00:03]} Nd3 {[%emt 0:00:07]} 28. f4 {[%emt 0:00:03]} Rc8 {[%emt 0:00:02]} 29. Kg2 {[%emt 0:00:16]} Bf8 {[%emt 0:00:05]} 30. Rb3 {[%emt 0:00:12]} Rc2+ {[%emt 0:00:11]} 31. Kf3 {[%emt 0:00:01]} Nc5 {[%emt 0:00:02]} 32. Re3 {[%emt 0:00:01]} a4 {[%emt 0:00:05]} 33. f5 {[%emt 0:00:02]} Nb3 {[%emt 0:00:08]} 34. Kg4 {[%emt 0:00:10]} Bxa3 {[%emt 0:00:07]} 35. e6 {[%emt 0:00:04]} Rc7 {[%emt 0:00:22]} 36. Rd1 {[%emt 0:00:07]} fxe6 {[%emt 0:00:10]} 37. fxe6 {[%emt 0:00:02]} Rg7+ {[%emt 0:00:02]} 38. Kf5 {[%emt 0:00:07]} Be7 {[%emt 0:00:03]} 39. Rd7 {[%emt 0:00:05]} Nc5 {[%emt 0:00:02]} 40. Ra7 {[%emt 0:00:02]} h5 {[%emt 0:00:09]} 41. h4 {[%emt 0:00:02]} Kh7 {[%emt 0:00:01]} 42. Re5 {[%emt 0:00:03]} Kh6 {[%emt 0:00:01]} 43. Rxe7 {[%emt 0:00:02]} Rxe7 {[%emt 0:00:02]} 44. Rxc5 {[%emt 0:00:01]} Ra7 {[%emt 0:00:00]} 45. Kf6 {[%emt 0:00:03]} a3 {[%emt 0:00:01]} 46. Rc1 {[%emt 0:00:01]} a2 {[%emt 0:00:01]} 47. e7 {[%emt 0:00:02]} a1=Q+ {[%emt 0:00:07]} 48. Rxa1 {[%emt 0:00:01]} Rxa1 {[%emt 0:00:02]} 49. e8=Q {[%emt 0:00:02]} Rf1+ {[%emt 0:00:01]} 50. Ke7 {[%emt 0:00:02]} Re1+ {[%emt 0:00:01]} 51. Kd7 {[%emt 0:00:01]} Rxe8 {[%emt 0:00:02]} 52. Kxe8 {[%emt 0:00:01]} Kg6 {[%emt 0:00:02]} 53. Kf8 {[%emt 0:00:02]} Kf6 {[%emt 0:00:02]} 54. Ke8 {[%emt 0:00:05]} Ke6 {[%emt 0:00:01]} 55. Kf8 {[%emt 0:00:02]} Kf6 {[%emt 0:00:01]} 56. Ke8 {[%emt 0:00:01]} Ke6 {[%emt 0:00:02]} 1/2-1/2

[Event "53rd Biel Blitz 2020"]
[Site "Biel"]
[Date "2020.07.25"]
[Round "11.3"]
[White "Keymer, Vincent"]
[Black "Naiditsch, Arkadji"]
[Result "1-0"]
[ECO "E11"]
[WhiteElo "2476"]
[BlackElo "2581"]
[Annotator "RC"]
[PlyCount "71"]
[EventDate "2020.07.21"]
[EventType "tourn"]
[EventCountry "SUI"]
[SourceTitle "playchess.com"]
[Source "ChessBase"]
[SourceQuality "1"]
[TimeControl "180+2"]

1. d4 {[%emt 0:00:00]} Nf6 {[%emt 0:00:00]} 2. c4 {[%emt 0:00:00]} e6 {[%emt 0:00:00]} 3. Nf3 {[%emt 0:00:01]} Bb4+ {[%emt 0:00:00]} 4. Nbd2 {[%emt 0:00:01]} c5 {[%emt 0:00:01]} 5. a3 {[%emt 0:00:07]} Bxd2+ {[%emt 0:00:02]} 6. Bxd2 {[%emt 0:00:02]} cxd4 {[%emt 0:00:02]} 7. Nxd4 {[%emt 0:00:04]} d5 {[%emt 0:00:00]} 8. e3 {[%emt 0:00:07]} O-O {[%emt 0:00:03]} 9. Qc2 {[%emt 0:00:31]} e5 {[%emt 0:00:08]} 10. Nf3 {[%emt 0:00:03]} e4 {[%emt 0:00:26]} 11. Nd4 {[%emt 0:00:05]} Nbd7 {[%emt 0:00:03]} 12. h3 {[%emt 0:00:11]} Ne5 {[%emt 0:00:03]} 13. c5 {[%emt 0:00:05]} Bd7 {[%emt 0:00:13]} 14. b4 {[%emt 0:00:04]} a5 {[%emt 0:00:15]} 15. Bc3 {[%emt 0:00:44]} axb4 {[%emt 0:00:37]} 16. axb4 {[%emt 0:00:01]} Rxa1+ {[%emt 0:00:02]} 17. Bxa1 {[%emt 0:00:01]} Qa8 {[%emt 0:00:01]} 18. Qb2 {[%emt 0:00:10]} Qa4 {[%emt 0:00:33]} 19. Be2 {[%emt 0:00:03]} Nd3+ {[%emt 0:00:03]} 20. Bxd3 {[%emt 0:00:02]} exd3 {[%emt 0:00:02]} 21. O-O {[%emt 0:00:14]} Ra8 {[%emt 0:00:02]} 22. b5 {[%emt 0:00:21]} Qa2 {[%emt 0:00:13]} 23. c6 {[%emt 0:00:21]} Qxb2 {[%emt 0:00:11]} 24. Bxb2 {[%emt 0:00:01]} bxc6 {[%emt 0:00:02]} 25. bxc6 {[%emt 0:00:00]} Bc8 {[%emt 0:00:02]} 26. Rd1 {[%emt 0:00:06]} Ra2 {[%emt 0:00:01]} 27. Bc3 {[%emt 0:00:09]} Ba6 {[%emt 0:00:01]} 28. c7 {[%emt 0:00:09]} Ne8 {[%emt 0:00:12]} 29. Rb1 {[%emt 0:00:02]} Nd6 {[%emt 0:00:22]} 30. Rb8+ {[%emt 0:00:03]} Nc8 {[%emt 0:00:01]} 31. Nf5 {[%emt 0:00:06]} Kf8 {[%emt 0:00:02]} 32. Nd6 {[%emt 0:00:01]} Ke7 {[%emt 0:00:07]} 33. Nxc8+ {[%emt 0:00:02]} Bxc8 {[%emt 0:00:01]} 34. Rxc8 {[%emt 0:00:01]} Kd7 {[%emt 0:00:01]} 35. Rd8+ {[%emt 0:00:02]} Kxc7 {[%emt 0:00:02]} 36. Rxd5 {[%emt 0:00:01]} 1-0